[Event "32nd GER-ch Seniors-65 2020"]
[Site "Magdeburg"]
[Date "2020.08.17"]
[Round "4.2"]
[White "Dresen, Ulrich"]
[Black "Pfitzer, Norbert"]
[Result "1-0"]
[ECO "A48"]
[WhiteElo "2230"]
[BlackElo "2068"]
[Annotator "ChessBase"]
[PlyCount "93"]
[EventDate "2020.08.14"]
[EventType "swiss"]
[EventCountry "GER"]
[SourceTitle "playchess.com"]
[Source "ChessBase"]
[SourceQuality "1"]
[TimeControl "40/5400+30:1800+30"]

1. d4 {[%emt 0:00:00]} Nf6 {[%emt 0:00:00]} 2. Nf3 {[%emt 0:00:00]} g6 {[%emt 0:00:00]} 3. c4 {[%emt 0:00:00]} Bg7 {[%emt 0:00:11]} 4. Nc3 {[%emt 0:00:01]} O-O {[%emt 0:00:15]} 5. e4 {[%emt 0:00:07]} d6 {[%emt 0:00:16]} 6. h3 {[%emt 0:00:17]} c5 {[%emt 0:02:59]} 7. d5 {[%emt 0:00:06]} e6 {[%emt 0:04:50]} 8. Bd3 {[%emt 0:00:12]} exd5 {[%emt 0:08:01]} 9. cxd5 {[%emt 0:00:08]} Nfd7 {[%emt 0:03:56]} 10. Bf4 {[%emt 0:01:11]} Ne5 {[%emt 0:00:10]} 11. Nxe5 {[%emt 0:00:25]} Bxe5 {[%emt 0:00:28]} 12. Bxe5 {[%emt 0:00:41]} dxe5 {[%emt 0:00:05]} 13. O-O {[%emt 0:02:25]} Qg5 {[%emt 0:02:27]} 14. Qc1 {[%emt 0:02:30]} Qxc1 {[%emt 0:02:50]} 15. Rfxc1 {[%emt 0:00:17]} Nd7 {[%emt 0:05:22]} 16. a4 {[%emt 0:05:39]} a5 {[%emt 0:08:38]} 17. Bb5 {[%emt 0:01:02]} Nf6 {[%emt 0:00:16]} 18. f3 {[%emt 0:01:37]} Nh5 {[%emt 0:00:41]} 19. Nd1 {[%emt 0:01:09]} b6 {[%emt 0:00:14]} 20. Ne3 {[%emt 0:01:19]} Rb8 {[%emt 0:05:05]} 21. Nc4 {[%emt 0:01:55]} f6 {[%emt 0:00:36]} 22. Ra3 {[%emt 0:00:36]} Rd8 {[%emt 0:05:46]} 23. Rb3 {[%emt 0:02:10]} Nf4 {[%emt 0:00:30]} 24. Rc2 {[%emt 0:00:22]} Kf8 {[%emt 0:00:30]} 25. h4 {[%emt 0:00:28]} h6 {[%emt 0:04:41]} 26. g3 {[%emt 0:02:57]} Nh5 {[%emt 0:02:56]} 27. Kg2 {[%emt 0:03:15]} g5 {[%emt 0:01:21]} 28. hxg5 {[%emt 0:00:36]} hxg5 {[%emt 0:00:09]} 29. Rf2 {[%emt 0:06:13]} Ke7 {[%emt 0:04:50]} 30. Rd3 {[%emt 0:09:55]} Kf7 {[%emt 0:03:44]} 31. Rd1 {[%emt 0:04:04]} Kg6 {[%emt 0:10:13]} 32. Rg1 {[%emt 0:02:23]} Kf7 {[%emt 0:02:12]} 33. Kf1 {[%emt 0:07:09]} Bd7 {[%emt 0:02:17]} 34. Rh2 {[%emt 0:08:00]} Bxb5 {[%emt 0:02:58]} 35. axb5 {[%emt 0:00:04]} Ng7 {[%emt 0:02:42]} 36. Ke2 {[%emt 0:01:55]} Rg8 {[%emt 0:07:39]} 37. Rgh1 {[%emt 0:01:29]} Ne8 {[%emt 0:02:50]} 38. Rh7+ {[%emt 0:01:10]} Rg7 {[%emt 0:00:11]} 39. Rh8 {[%emt 0:00:17]} Rb7 {[%emt 0:00:04]} 40. Rxe8 {[%emt 0:15:17]} Kxe8 {[%emt 0:00:01]} 41. Nd6+ {[%emt 0:31:22]} Kd7 {[%emt 0:30:27]} 42. Nxb7 {[%emt 0:00:35]} Kc7 {[%emt 0:00:03]} 43. Nxc5 {[%emt 0:07:01]} bxc5 {[%emt 0:00:04]} 44. Rh6 {[%emt 0:06:26]} Rf7 {[%emt 0:00:04]} 45. Kd3 {[%emt 0:00:57]} f5 {[%emt 0:00:29]} 46. Rc6+ {[%emt 0:01:09]} Kb7 {[%emt 0:00:02]} 47. d6 {[%emt 0:02:32]} 1-0

[Event "32nd GER-ch Seniors-65 2020"]
[Site "Magdeburg"]
[Date "2020.08.17"]
[Round "4.3"]
[White "Syre, Christian"]
[Black "Bogorad, Michail"]
[Result "1-0"]
[ECO "A30"]
[WhiteElo "2222"]
[BlackElo "2064"]
[Annotator "ChessBase"]
[PlyCount "85"]
[EventDate "2020.08.14"]
[EventType "swiss"]
[EventCountry "GER"]
[SourceTitle "playchess.com"]
[Source "ChessBase"]
[SourceQuality "1"]
[TimeControl "40/5400+30:1800+30"]

1. c4 {[%emt 0:00:00]} c5 {[%emt 0:00:00]} 2. b3 {[%emt 0:01:20]} Nf6 {[%emt 0:00:08]} 3. Bb2 {[%emt 0:00:02]} d6 {[%emt 0:04:45]} 4. g3 {[%emt 0:00:58]} Bd7 {[%emt 0:00:37]} 5. Bg2 {[%emt 0:00:27]} Bc6 {[%emt 0:00:38]} 6. Nf3 {[%emt 0:00:12]} e5 {[%emt 0:01:29]} 7. Nc3 {[%emt 0:01:27]} g6 {[%emt 0:06:45]} 8. O-O {[%emt 0:01:56]} Bg7 {[%emt 0:00:10]} 9. e3 {[%emt 0:10:38]} O-O {[%emt 0:07:06]} 10. d4 {[%emt 0:01:24]} exd4 {[%emt 0:20:56]} 11. exd4 {[%emt 0:00:02]} cxd4 {[%emt 0:01:24]} 12. Ne2 {[%emt 0:09:26]} d5 {[%emt 0:03:33]} 13. c5 {[%emt 0:14:23]} Qa5 {[%emt 0:13:23]} 14. Bxd4 {[%emt 0:04:50]} Nbd7 {[%emt 0:02:03]} 15. a3 {[%emt 0:08:33]} Rfe8 {[%emt 0:01:10]} 16. b4 {[%emt 0:03:59]} Qa6 {[%emt 0:11:36]} 17. Nc3 {[%emt 0:05:07]} Qc4 {[%emt 0:05:03]} 18. Rc1 {[%emt 0:05:55]} Qa6 {[%emt 0:02:05]} 19. a4 {[%emt 0:00:47]} Ne4 {[%emt 0:04:02]} 20. b5 {[%emt 0:04:27]} Nxc3 {[%emt 0:00:03]} 21. Bxc3 {[%emt 0:01:07]} Bxb5 {[%emt 0:00:30]} 22. axb5 {[%emt 0:00:00]} Qxb5 {[%emt 0:00:22]} 23. Bxg7 Kxg7 {[%emt 0:00:06]} 24. Nd4 {[%emt 0:02:54]} Qa5 {[%emt 0:01:59]} 25. Bxd5 {[%emt 0:03:10]} Nxc5 {[%emt 0:00:40]} 26. Nf5+ {[%emt 0:01:58]} gxf5 {[%emt 0:03:06]} 27. Qd4+ {[%emt 0:00:02]} Kg6 {[%emt 0:02:12]} 28. Rxc5 {[%emt 0:00:06]} Qd8 {[%emt 0:00:15]} 29. Bxf7+ {[%emt 0:03:20]} Kxf7 {[%emt 0:01:13]} 30. Rxf5+ {[%emt 0:00:03]} Kg8 {[%emt 0:00:56]} 31. Qg4+ {[%emt 0:05:18]} Kh8 {[%emt 0:00:13]} 32. Rf7 {[%emt 0:02:36]} Rg8 {[%emt 0:00:47]} 33. Qh5 {[%emt 0:01:08]} Rg7 {[%emt 0:00:16]} 34. Rxg7 {[%emt 0:00:12]} Kxg7 {[%emt 0:00:29]} 35. Rd1 {[%emt 0:00:04]} Qe7 {[%emt 0:03:43]} 36. Qg4+ {[%emt 0:00:11]} Kh8 {[%emt 0:00:37]} 37. Rd7 {[%emt 0:00:53]} Qe1+ {[%emt 0:01:43]} 38. Kg2 {[%emt 0:00:17]} Qe5 {[%emt 0:00:28]} 39. Qh4 {[%emt 0:05:50]} Qf5 {[%emt 0:00:53]} 40. Qc4 h5 41. Qh4 Qe5 42. Qc4 Rf8 43. Qc2 1-0

[Event "32nd GER-ch Seniors-65 2020"]
[Site "Magdeburg"]
[Date "2020.08.17"]
[Round "4.6"]
[White "Zimmermann, Rolf"]
[Black "Kierzek, Matthias"]
[Result "0-1"]
[ECO "A21"]
[WhiteElo "2101"]
[BlackElo "2228"]
[Annotator "ChessBase"]
[PlyCount "88"]
[EventDate "2020.08.14"]
[EventType "swiss"]
[EventCountry "GER"]
[SourceTitle "playchess.com"]
[Source "ChessBase"]
[SourceQuality "1"]
[TimeControl "40/5400+30:1800+30"]

1. c4 {[%emt 0:00:00]} e5 {[%emt 0:00:00]} 2. Nc3 {[%emt 0:00:04]} Bb4 {[%emt 0:00:00]} 3. g3 {[%emt 0:00:47]} Bxc3 {[%emt 0:00:00]} 4. dxc3 {[%emt 0:00:15]} d6 {[%emt 0:00:15]} 5. Bg2 {[%emt 0:00:14]} Nc6 {[%emt 0:02:47]} 6. c5 {[%emt 0:06:28]} dxc5 {[%emt 0:08:28]} 7. Bxc6+ {[%emt 0:01:39]} bxc6 {[%emt 0:00:25]} 8. Qxd8+ {[%emt 0:00:04]} Kxd8 {[%emt 0:00:12]} 9. c4 {[%emt 0:00:30]} Be6 {[%emt 0:07:14]} 10. b3 {[%emt 0:03:26]} Nf6 {[%emt 0:00:47]} 11. Nf3 {[%emt 0:06:19]} Nd7 {[%emt 0:01:53]} 12. Ng5 {[%emt 0:00:18]} Ke7 {[%emt 0:00:45]} 13. Nxe6 {[%emt 0:06:38]} Kxe6 {[%emt 0:00:04]} 14. e4 {[%emt 0:03:35]} a5 {[%emt 0:02:19]} 15. Be3 {[%emt 0:12:35]} a4 {[%emt 0:01:01]} 16. Kd2 {[%emt 0:00:16]} Ra6 {[%emt 0:10:07]} 17. Kc2 {[%emt 0:01:20]} Rha8 {[%emt 0:01:15]} 18. Rab1 {[%emt 0:01:00]} axb3+ {[%emt 0:08:42]} 19. axb3 {[%emt 0:00:06]} Ra2+ {[%emt 0:00:21]} 20. Rb2 {[%emt 0:00:19]} Ra1 {[%emt 0:00:59]} 21. Rxa1 {[%emt 0:00:17]} Rxa1 {[%emt 0:00:02]} 22. Rb1 {[%emt 0:00:18]} Rxb1 {[%emt 0:00:57]} 23. Kxb1 {[%emt 0:00:17]} f5 {[%emt 0:00:26]} 24. exf5+ {[%emt 0:02:25]} Kxf5 {[%emt 0:00:03]} 25. f3 {[%emt 0:00:31]} e4 {[%emt 0:14:36]} 26. g4+ {[%emt 0:02:06]} Ke6 {[%emt 0:00:23]} 27. f4 {[%emt 0:00:15]} h5 {[%emt 0:01:26]} 28. f5+ {[%emt 0:03:11]} Ke5 {[%emt 0:03:26]} 29. gxh5 {[%emt 0:02:42]} Kxf5 {[%emt 0:03:48]} 30. h3 {[%emt 0:05:07]} Nf8 {[%emt 0:07:53]} 31. Bxc5 {[%emt 0:04:57]} Ne6 {[%emt 0:00:34]} 32. Be3 {[%emt 0:05:49]} Nf4 {[%emt 0:00:29]} 33. h6 {[%emt 0:02:07]} gxh6 {[%emt 0:00:16]} 34. Kc2 {[%emt 0:01:44]} h5 {[%emt 0:01:45]} 35. h4 {[%emt 0:01:19]} Kg4 {[%emt 0:06:13]} 36. Kd2 Kf3 37. b4 {[%emt 0:07:22]} Ng2 {[%emt 0:00:26]} 38. Bg5 {[%emt 0:00:08]} e3+ {[%emt 0:00:08]} 39. Kd3 {[%emt 0:02:40]} e2 {[%emt 0:00:16]} 40. Bd2 {[%emt 0:00:16]} e1=Q {[%emt 0:00:22]} 41. Bxe1 {[%emt 0:30:14]} Nxe1+ {[%emt 0:30:08]} 42. Kd4 {[%emt 0:01:04]} Kg4 {[%emt 0:02:38]} 43. Kc5 {[%emt 0:00:51]} Nd3+ {[%emt 0:00:24]} 44. Kxc6 {[%emt 0:00:24]} Nxb4+ {[%emt 0:00:05]} 0-1

[Event "32nd GER-ch Seniors-65 2020"]
[Site "Magdeburg"]
[Date "2020.08.17"]
[Round "4.9"]
[White "Harringer, Manfred"]
[Black "Krauseneck, Peter"]
[Result "1/2-1/2"]
[ECO "C00"]
[WhiteElo "2008"]
[BlackElo "2120"]
[Annotator "ChessBase"]
[PlyCount "205"]
[EventDate "2020.08.14"]
[EventType "swiss"]
[EventCountry "GER"]
[SourceTitle "playchess.com"]
[Source "ChessBase"]
[SourceQuality "1"]
[TimeControl "40/5400+30:1800+30"]

1. e4 {[%emt 0:00:00]} e6 {[%emt 0:00:00]} 2. d4 {[%emt 0:00:00]} b6 {[%emt 0:00:00]} 3. Nc3 {[%emt 0:01:38]} Bb7 {[%emt 0:00:04]} 4. Bd3 {[%emt 0:01:22]} Bb4 {[%emt 0:00:16]} 5. Nge2 {[%emt 0:01:47]} d5 {[%emt 0:05:20]} 6. O-O {[%emt 0:01:22]} dxe4 {[%emt 0:02:08]} 7. Bxe4 {[%emt 0:02:16]} c6 {[%emt 0:02:35]} 8. a3 {[%emt 0:03:56]} Be7 {[%emt 0:00:03]} 9. Bf4 {[%emt 0:07:27]} Nf6 {[%emt 0:00:04]} 10. Bf3 {[%emt 0:00:16]} O-O {[%emt 0:01:36]} 11. Re1 {[%emt 0:03:59]} Nbd7 {[%emt 0:01:18]} 12. Ng3 {[%emt 0:04:20]} Nd5 {[%emt 0:05:05]} 13. Nxd5 {[%emt 0:02:28]} cxd5 {[%emt 0:02:32]} 14. Be2 {[%emt 0:00:54]} Rc8 {[%emt 0:00:18]} 15. Bd3 {[%emt 0:00:19]} Nf6 {[%emt 0:05:14]} 16. c3 {[%emt 0:03:03]} Qd7 {[%emt 0:01:25]} 17. Re3 {[%emt 0:04:44]} g6 {[%emt 0:09:08]} 18. h4 {[%emt 0:11:24]} h5 {[%emt 0:04:44]} 19. Bg5 {[%emt 0:01:27]} Ng4 {[%emt 0:02:10]} 20. Re2 {[%emt 0:02:19]} Kg7 {[%emt 0:09:47]} 21. Qd2 {[%emt 0:01:42]} Rh8 {[%emt 0:01:39]} 22. Rae1 {[%emt 0:01:18]} Bd6 {[%emt 0:03:42]} 23. Bf4 {[%emt 0:02:14]} Rce8 {[%emt 0:01:53]} 24. Bxd6 {[%emt 0:02:55]} Qxd6 {[%emt 0:00:08]} 25. Qg5 {[%emt 0:01:55]} Qd8 {[%emt 0:01:51]} 26. f3 {[%emt 0:02:01]} Nf6 {[%emt 0:01:14]} 27. Re3 {[%emt 0:05:23]} Qd6 {[%emt 0:08:04]} 28. Ne2 {[%emt 0:12:43]} Nh7 {[%emt 0:00:55]} 29. Qf4 {[%emt 0:01:05]} Qxf4 {[%emt 0:02:31]} 30. Nxf4 {[%emt 0:00:05]} Nf6 {[%emt 0:04:29]} 31. Kf2 {[%emt 0:00:30]} Bc6 {[%emt 0:00:11]} 32. R3e2 a5 {[%emt 0:03:39]} 33. Rd2 {[%emt 0:05:18]} Rb8 {[%emt 0:02:22]} 34. Bf1 {[%emt 0:01:06]} Rhc8 {[%emt 0:02:02]} 35. Ba6 {[%emt 0:01:23]} Re8 {[%emt 0:00:01]} 36. Bf1 {[%emt 0:00:34]} Ba4 {[%emt 0:02:26]} 37. Nd3 {[%emt 0:07:39]} Rec8 {[%emt 0:06:02]} 38. Ne5 {[%emt 0:01:18]} b5 {[%emt 0:02:44]} 39. Ra1 {[%emt 0:01:34]} Bb3 {[%emt 0:00:40]} 40. Bd3 {[%emt 0:01:07]} Rc7 {[%emt 0:01:14]} 41. Ke3 {[%emt 0:04:11]} Ne8 {[%emt 0:10:39]} 42. Bc2 {[%emt 0:01:58]} Bxc2 {[%emt 0:02:58]} 43. Rxc2 {[%emt 0:00:05]} Nd6 {[%emt 0:00:52]} 44. Nd3 {[%emt 0:02:37]} Nf5+ {[%emt 0:01:31]} 45. Kd2 {[%emt 0:03:41]} Nxh4 {[%emt 0:00:33]} 46. Nc5 {[%emt 0:00:04]} Ra7 {[%emt 0:03:10]} 47. Kd3 {[%emt 0:00:16]} a4 {[%emt 0:03:18]} 48. g4 {[%emt 0:02:19]} Rh8 {[%emt 0:04:06]} 49. Ke3 {[%emt 0:01:33]} Re7 {[%emt 0:03:42]} 50. Kf4 {[%emt 0:03:59]} f6 {[%emt 0:05:05]} 51. Re1 {[%emt 0:00:19]} g5+ {[%emt 0:01:35]} 52. Kg3 {[%emt 0:03:24]} hxg4 {[%emt 0:01:22]} 53. Kxg4 {[%emt 0:01:05]} f5+ {[%emt 0:00:19]} 54. Kg3 {[%emt 0:00:07]} Kf6 {[%emt 0:00:16]} 55. Rce2 {[%emt 0:00:22]} Rhe8 {[%emt 0:00:02]} 56. Nd3 {[%emt 0:01:44]} f4+ {[%emt 0:00:55]} 57. Kf2 {[%emt 0:03:10]} Nf5 {[%emt 0:00:12]} 58. Ne5 {[%emt 0:01:23]} Ne3 {[%emt 0:01:53]} 59. Rh1 {[%emt 0:00:31]} Rg7 {[%emt 0:01:17]} 60. Rh6+ {[%emt 0:01:38]} Ke7 {[%emt 0:00:14]} 61. Ke1 {[%emt 0:00:19]} Nf5 {[%emt 0:00:18]} 62. Rh3 {[%emt 0:01:25]} Nh4 {[%emt 0:01:36]} 63. Nd3 {[%emt 0:01:13]} Rf8 {[%emt 0:00:46]} 64. Ne5 {[%emt 0:01:48]} Rh8 {[%emt 0:00:24]} 65. Kd1 {[%emt 0:00:38]} Rgh7 {[%emt 0:00:10]} 66. Reh2 {[%emt 0:00:57]} Kf6 {[%emt 0:00:41]} 67. Ng4+ {[%emt 0:01:41]} Kg7 68. Re2 {[%emt 0:00:10]} Re8 {[%emt 0:01:45]} 69. Re5 {[%emt 0:00:41]} Kg6 {[%emt 0:00:10]} 70. Re2 {[%emt 0:00:21]} Ree7 {[%emt 0:01:04]} 71. Ne5+ Kf5 {[%emt 0:00:40]} 72. Reh2 {[%emt 0:00:41]} Rh8 {[%emt 0:00:25]} 73. Rh1 {[%emt 0:00:34]} Reh7 {[%emt 0:00:31]} 74. Ke2 {[%emt 0:01:38]} Re8 {[%emt 0:00:47]} 75. Kd1 {[%emt 0:00:06]} Rhh8 {[%emt 0:00:37]} 76. Ke2 {[%emt 0:01:27]} Ng6 {[%emt 0:00:20]} 77. Nf7 {[%emt 0:00:31]} Rxh3 {[%emt 0:00:20]} 78. Rxh3 {[%emt 0:00:05]} Kf6 {[%emt 0:00:13]} 79. Nd6 {[%emt 0:01:27]} Rd8 {[%emt 0:00:06]} 80. Nb7 {[%emt 0:00:17]} Rb8 {[%emt 0:00:24]} 81. Rh7 {[%emt 0:00:45]} e5 {[%emt 0:02:08]} 82. Nc5 {[%emt 0:00:10]} Re8 {[%emt 0:00:25]} 83. Nd7+ {[%emt 0:01:05]} Kf5 {[%emt 0:00:19]} 84. Rf7+ {[%emt 0:00:36]} Ke6 {[%emt 0:00:02]} 85. Rg7 {[%emt 0:00:17]} exd4 {[%emt 0:00:32]} 86. cxd4 {[%emt 0:00:51]} Ne7 {[%emt 0:00:23]} 87. Ne5 {[%emt 0:00:21]} Rg8 {[%emt 0:00:48]} 88. Rh7 {[%emt 0:00:09]} Nf5 {[%emt 0:00:12]} 89. Kd3 {[%emt 0:00:12]} Rg7 {[%emt 0:00:46]} 90. Rh8 {[%emt 0:00:16]} Nd6 {[%emt 0:00:43]} 91. Rh6+ {[%emt 0:00:30]} Ke7 {[%emt 0:00:08]} 92. Nc6+ {[%emt 0:00:27]} Kd7 {[%emt 0:00:05]} 93. Nb4 {[%emt 0:02:00]} Nc4 {[%emt 0:00:41]} 94. Rh2 {[%emt 0:00:41]} Ne3 {[%emt 0:00:18]} 95. Rh6 {[%emt 0:00:17]} Kc7 {[%emt 0:01:06]} 96. Na6+ {[%emt 0:00:23]} Kd8 {[%emt 0:01:26]} 97. Nc5 {[%emt 0:00:18]} Ke7 {[%emt 0:00:27]} 98. Rb6 {[%emt 0:00:55]} g4 {[%emt 0:00:13]} 99. Rb7+ {[%emt 0:00:48]} Kf6 {[%emt 0:00:05]} 100. Rxg7 {[%emt 0:00:01]} Kxg7 {[%emt 0:00:01]} 101. fxg4 {[%emt 0:00:21]} Nxg4 {[%emt 0:00:02]} 102. Ne6+ Kf7 103. Nxf4 {[%emt 0:01:13]} 1/2-1/2

[Event "32nd GER-ch Seniors-65 2020"]
[Site "Magdeburg"]
[Date "2020.08.17"]
[Round "4.10"]
[White "Buchal, Stephan"]
[Black "Hilbig, Dieter"]
[Result "1/2-1/2"]
[ECO "A14"]
[WhiteElo "2280"]
[BlackElo "1884"]
[Annotator "ChessBase"]
[PlyCount "62"]
[EventDate "2020.08.14"]
[EventType "swiss"]
[EventCountry "GER"]
[SourceTitle "playchess.com"]
[Source "ChessBase"]
[SourceQuality "1"]
[TimeControl "40/5400+30:1800+30"]

1. c4 {[%emt 0:00:00]} e6 {[%emt 0:00:13]} 2. g3 {[%emt 0:00:00]} d5 {[%emt 0:00:21]} 3. Bg2 {[%emt 0:00:10]} Nf6 {[%emt 0:00:29]} 4. Nf3 {[%emt 0:00:14]} Be7 {[%emt 0:01:26]} 5. O-O {[%emt 0:00:36]} O-O {[%emt 0:00:12]} 6. b3 {[%emt 0:00:20]} b6 {[%emt 0:04:25]} 7. Bb2 {[%emt 0:01:10]} Bb7 {[%emt 0:00:39]} 8. e3 {[%emt 0:00:45]} c5 {[%emt 0:04:07]} 9. Nc3 {[%emt 0:01:12]} dxc4 {[%emt 0:07:08]} 10. bxc4 {[%emt 0:02:21]} Ne4 {[%emt 0:02:00]} 11. Qc2 {[%emt 0:08:50]} Nxc3 {[%emt 0:05:21]} 12. Bxc3 {[%emt 0:00:11]} Nc6 {[%emt 0:04:59]} 13. Rfd1 {[%emt 0:06:46]} Qc7 {[%emt 0:01:52]} 14. Qb2 {[%emt 0:06:12]} f6 {[%emt 0:03:17]} 15. d4 {[%emt 0:00:55]} Rad8 {[%emt 0:03:02]} 16. Rac1 {[%emt 0:14:18]} Rfe8 {[%emt 0:05:10]} 17. d5 {[%emt 0:03:33]} exd5 {[%emt 0:03:17]} 18. cxd5 {[%emt 0:00:15]} Nb8 {[%emt 0:01:08]} 19. e4 {[%emt 0:07:18]} Bd6 {[%emt 0:04:25]} 20. Nd2 {[%emt 0:07:04]} Be5 {[%emt 0:03:50]} 21. f4 {[%emt 0:04:54]} Bxc3 {[%emt 0:00:44]} 22. Qxc3 {[%emt 0:00:28]} Bc8 {[%emt 0:07:32]} 23. Re1 {[%emt 0:01:30]} g5 {[%emt 0:03:18]} 24. fxg5 {[%emt 0:09:01]} fxg5 {[%emt 0:00:27]} 25. Nf3 {[%emt 0:00:26]} h6 {[%emt 0:01:10]} 26. Nd2 {[%emt 0:05:45]} Nd7 {[%emt 0:02:01]} 27. Rf1 {[%emt 0:09:47]} Ne5 28. Rf2 {[%emt 0:06:29]} Ng4 {[%emt 0:09:13]} 29. Rf3 {[%emt 0:00:13]} Ne5 {[%emt 0:00:33]} 30. Rf2 {[%emt 0:00:02]} Ng4 {[%emt 0:00:32]} 31. Rf3 {[%emt 0:00:47]} Ne5 {[%emt 0:00:05]} 1/2-1/2

[Event "32nd GER-ch Seniors-65 2020"]
[Site "Magdeburg"]
[Date "2020.08.18"]
[Round "5.6"]
[White "Strobel, Walter"]
[Black "Cichy, Michael"]
[Result "1-0"]
[ECO "B48"]
[WhiteElo "2150"]
[BlackElo "2038"]
[Annotator "ChessBase"]
[PlyCount "93"]
[EventDate "2020.08.14"]
[EventType "swiss"]
[EventCountry "GER"]
[SourceTitle "playchess.com"]
[Source "ChessBase"]
[SourceQuality "1"]
[TimeControl "40/5400+30:1800+30"]

1. e4 {[%emt 0:00:00]} c5 {[%emt 0:00:00]} 2. Nf3 {[%emt 0:00:00]} e6 {[%emt 0:00:23]} 3. d4 {[%emt 0:00:03]} cxd4 {[%emt 0:00:09]} 4. Nxd4 {[%emt 0:00:07]} Nc6 {[%emt 0:01:07]} 5. Nc3 {[%emt 0:01:01]} Qc7 {[%emt 0:00:36]} 6. Be3 {[%emt 0:01:25]} a6 {[%emt 0:00:55]} 7. a3 {[%emt 0:00:43]} b5 {[%emt 0:01:24]} 8. Nxc6 {[%emt 0:03:00]} dxc6 {[%emt 0:01:14]} 9. f4 {[%emt 0:02:45]} Bb7 {[%emt 0:01:51]} 10. g3 {[%emt 0:04:53]} c5 {[%emt 0:03:02]} 11. Bg2 {[%emt 0:00:49]} Nf6 {[%emt 0:02:24]} 12. Qe2 {[%emt 0:06:08]} Rd8 {[%emt 0:05:56]} 13. O-O {[%emt 0:03:21]} Be7 {[%emt 0:06:49]} 14. f5 {[%emt 0:16:54]} e5 {[%emt 0:05:54]} 15. Rad1 {[%emt 0:08:22]} O-O {[%emt 0:03:21]} 16. g4 {[%emt 0:12:06]} b4 {[%emt 0:22:42]} 17. Nd5 {[%emt 0:02:39]} Bxd5 {[%emt 0:04:32]} 18. exd5 {[%emt 0:00:06]} h6 {[%emt 0:04:58]} 19. h4 {[%emt 0:07:53]} Nh7 {[%emt 0:01:00]} 20. Qe1 {[%emt 0:01:42]} bxa3 {[%emt 0:00:39]} 21. bxa3 {[%emt 0:00:05]} c4 {[%emt 0:00:57]} 22. Qg3 {[%emt 0:02:36]} f6 {[%emt 0:03:13]} 23. Rb1 {[%emt 0:03:47]} Bc5 {[%emt 0:03:53]} 24. Kh1 {[%emt 0:00:43]} Bxe3 {[%emt 0:01:24]} 25. Qxe3 {[%emt 0:00:02]} Rd6 {[%emt 0:00:43]} 26. Rb4 {[%emt 0:01:53]} a5 {[%emt 0:01:47]} 27. Rb5 {[%emt 0:00:14]} Rc8 {[%emt 0:06:08]} 28. Rfb1 {[%emt 0:01:09]} Nf8 {[%emt 0:01:12]} 29. Qc3 {[%emt 0:06:51]} Ra8 {[%emt 0:03:39]} 30. Bf1 {[%emt 0:02:06]} Qa7 {[%emt 0:02:03]} 31. Kg2 {[%emt 0:01:21]} h5 {[%emt 0:01:42]} 32. g5 {[%emt 0:03:11]} Qd7 {[%emt 0:00:54]} 33. Qf3 {[%emt 0:00:58]} fxg5 {[%emt 0:00:37]} 34. hxg5 {[%emt 0:02:13]} e4 {[%emt 0:02:06]} 35. Qxe4 {[%emt 0:01:23]} Re8 {[%emt 0:00:26]} 36. Qf4 {[%emt 0:01:29]} Rc8 {[%emt 0:01:27]} 37. Rb7 {[%emt 0:01:40]} Qd8 {[%emt 0:00:04]} 38. Kh2 {[%emt 0:01:44]} Nh7 {[%emt 0:01:51]} 39. f6 {[%emt 0:00:11]} Nxf6 {[%emt 0:00:31]} 40. gxf6 {[%emt 0:00:55]} Rxf6 {[%emt 0:00:01]} 41. Qg3 {[%emt 0:30:22]} Qf8 {[%emt 0:36:05]} 42. Rb8 {[%emt 0:00:00]} Kh7 {[%emt 0:00:00]} 43. Rxc8 Qxc8 {[%emt 0:00:00]} 44. Bh3 {[%emt 0:00:00]} Qc5 45. Rb7 {[%emt 0:00:00]} Qf8 {[%emt 0:00:00]} 46. Bg2 {[%emt 0:00:00]} Kh6 {[%emt 0:00:00]} 47. Rb8 {[%emt 0:00:00]} 1-0